bitfinex/quotes_SOLUSD_20240921
["timestamp","ask_amount","ask_price","bid_price","bid_amount"]
[1726936165329,0.12549,147.61,147.59,0.2927242]
[1726936165729,0.12549,147.6,147.59,0.2927242]
[1726936165913,7.02598,147.6,147.59,0.2927242]
[1726936166228,42.62918,147.6,147.59,0.2927242]
[1726936167225,49.71508942,147.6,147.59,0.2927242]
[1726936179539,73.49197342,147.6,147.59,0.2927242]
[1726936181213,34.11188942,147.6,147.59,0.2927242]
[1726936185334,7.08590942,147.6,147.59,0.2927242]
[1726936185659,7.95285521,147.61,147.59,0.2927242]
[1726936185660,6.7748,147.61,147.59,0.2927242]
[1726936185937,13.856667,147.61,147.59,0.2927242]
[1726936186529,6.7748,147.61,147.59,0.2927242]
[1726936187058,0.25098,147.6,147.59,0.2927242]
[1726936187811,7.08178218,147.64,147.59,27.80077179]
[1726936188016,6.2155,147.7,147.59,27.80077179]
[1726936188223,6.7731,147.65,147.6,23.7112]
[1726936188636,6.7732,147.64,147.6,16.9366]
[1726936189338,0.25098,147.63,147.6,16.9366]
[1726936190043,0.25098,147.63,147.6,23.7116]
[1726936190239,13.8528846,147.66,147.61,6.7745]
[1726936190443,13.8528846,147.66,147.6,29.29964759]
[1726936190444,0.25098,147.65,147.6,29.29964759]
[1726936190652,0.25098,147.65,147.61,6.7744]
[1726936191254,7.02378,147.65,147.6,23.7115]
[1726936193134,7.02378,147.65,147.61,6.7745]
[1726936193530,0.25098,147.65,147.61,6.7745]
[1726936194757,0.25098,147.65,147.62,6.7741]
[1726936195241,20.25098,147.65,147.62,6.7741]
[1726936196158,20.12549,147.65,147.62,6.7741]
[1726936196363,0.12549,147.65,147.62,6.7741]
[1726936197668,0.12549,147.65,147.63,6.7736]
[1726936197960,0.25098,147.66,147.63,6.7736]
[1726936199734,20.0,147.67,147.62,29.29734759]
[1726936200445,26.772,147.67,147.62,23.7083]
[1726936200842,20.0,147.67,147.63,6.7735]
[1726936201029,0.12549,147.67,147.64,29.29554759]
[1726936201233,17.05744638,147.71,147.65,13.71752401]
[1726936201234,8.08004638,147.71,147.65,13.71752401]
[1726936201435,0.133339,147.71,147.67,6.7718]
[1726936201935,6.903439,147.71,147.67,6.7718]
[1726936202335,6.7717,147.68,147.64,15.145]
[1726936202939,20.12549,147.67,147.64,15.145]
[1726936204160,20.25098,147.69,147.65,6.7724]
[1726936205756,6.7714,147.68,147.64,21.9181]
[1726936206079,0.12549,147.63,147.58,15.5291]
[1726936206366,0.12549,147.66,147.58,15.5291]
[1726936207039,20.12549,147.62,147.58,22.3049]
[1726936207367,20.25098,147.61,147.57,23.7171]
[1726936210047,20.12549,147.61,147.58,6.7759]
[1726936210253,20.0,147.62,147.58,8.13092853]
[1726936210558,20.0,147.62,147.58,6.7759]
[1726936211567,20.25098,147.61,147.57,16.9408]
[1726936212364,7.02568,147.61,147.57,16.9408]
[1726936212555,26.775,147.6,147.57,16.9408]
[1726936212867,27.02598,147.6,147.55,7.0421954]
[1726936214053,20.12549,147.6,147.56,6.7767]
[1726936215940,20.12549,147.6,147.57,6.7763]
[1726936221274,20.12549,147.6,147.59,0.2212258]
[1726936221448,26.90049,147.6,147.59,0.2212258]
[1726936222075,27.02598,147.6,147.59,0.2212258]
[1726936224659,50.802864,147.6,147.59,0.2212258]
[1726936225062,27.02598,147.6,147.59,0.2212258]
[1726936226954,6.90139,147.58,147.57,0.248248]
[1726936227270,27.02688,147.58,147.57,0.248248]
[1726936232574,34.09749124,147.58,147.57,0.248248]
[1726936243091,33.84651124,147.58,147.57,0.248248]
[1726936244394,33.97200124,147.58,147.57,0.248248]
[1726936244895,34.09749124,147.58,147.57,0.248248]
[1726936245390,7.07061124,147.58,147.57,0.248248]
[1726936245584,33.8617,147.66,147.57,16.544348]
[1726936245780,6.7747,147.61,147.57,16.544348]
[1726936246699,7.07360005,147.64,147.58,1.35514491]
[1726936246872,7.07360005,147.64,147.59,12.36304759]
[1726936247074,16.9277,147.69,147.6,1.35484815]
[1726936247288,6.7714,147.68,147.63,6.7736]
[1726936247791,6.772,147.67,147.61,6.7742]
[1726936248174,6.7724,147.66,147.61,6.7742]
[1726936248370,6.7727,147.65,147.6,23.7117]
[1726936248688,0.12549,147.64,147.59,23.776884]
[1726936249387,6.89869,147.64,147.59,30.551984]
[1726936249777,0.12549,147.64,147.6,6.7749]
[1726936251679,0.12549,147.65,147.61,6.7745]
[1726936258474,6.89839,147.65,147.6,6.7749]
[1726936261302,0.12549,147.65,147.6,13.71784501]
[1726936261591,7.06231151,147.67,147.64,6.7732]
[1726936261806,6.7705,147.7,147.65,6.7726]
[1726936262693,6.771,147.69,147.65,6.7726]
[1726936263194,0.12549,147.68,147.65,6.7726]
[1726936264002,0.12549,147.68,147.64,6.7731]
[1726936264301,0.12549,147.69,147.65,1.35442843]
[1726936264805,23.79184728,147.72,147.65,1.35442843]
[1726936264806,20.0,147.71,147.67,6.7717]
[1726936264980,0.248248,147.72,147.68,6.7712]
[1726936265411,7.017748,147.72,147.67,20.488961]
[1726936265701,7.017748,147.72,147.67,19.13474759]
[1726936266090,0.248248,147.72,147.68,6.771]
[1726936266424,0.248248,147.72,147.7,16.9261]
[1726936268001,0.248248,147.72,147.7,23.6965]
[1726936268507,0.248248,147.72,147.69,16.5878]
[1726936269097,0.248248,147.72,147.69,17.94176606]
[1726936269417,0.248248,147.72,147.7,16.9261]
[1726936269697,0.248248,147.72,147.71,8.12380937]
[1726936269897,0.248248,147.72,147.71,50.74364096]
[1726936271885,0.248248,147.72,147.71,49.38983159]
[1726936272090,0.248248,147.72,147.71,30.546884]
[1726936272508,0.248248,147.72,147.71,42.90993159]
[1726936274834,0.248248,147.72,147.71,30.546884]
[1726936275122,0.248248,147.72,147.7,16.9261]
[1726936275616,0.248248,147.72,147.7,23.6963]
[1726936275915,0.248248,147.72,147.71,1.35380904]
[1726936276094,0.248248,147.72,147.7,23.6963]
[1726936276493,0.248248,147.72,147.71,1.35380923]
[1726936277814,0.248248,147.72,147.7,23.6963]
[1726936279612,0.248248,147.72,147.69,16.5878]
[1726936281926,0.248248,147.72,147.68,6.7713]
[1726936282426,0.12549,147.71,147.67,16.9294]
[1726936282602,0.12549,147.71,147.67,18.28352601]
[1726936282922,0.12549,147.71,147.67,25.05512601]
[1726936284815,0.12549,147.7,147.6,15.7346]
[1726936285122,0.12549,147.7,147.61,12.36304759]
[1726936285320,6.7704,147.7,147.65,6.7723]
[1726936286508,0.12549,147.71,147.66,30.548784]
[1726936286911,0.12549,147.71,147.67,1.35414594]
[1726936287530,0.248248,147.72,147.68,30.548184]
[1726936287705,0.248248,147.72,147.68,23.776884]
[1726936287910,0.248248,147.72,147.67,16.929]
[1726936288125,6.77,147.71,147.67,16.929]
[1726936291618,0.248248,147.72,147.68,6.7712]
[1726936291828,0.248248,147.72,147.69,1.35405464]
[1726936294326,0.248248,147.72,147.71,6.77]
[1726936294534,0.248248,147.72,147.71,8.12377945]
[1726936295428,0.248248,147.72,147.71,6.77]
[1726936296425,0.248248,147.72,147.69,23.6972]
[1726936296626,0.248248,147.72,147.67,23.776884]
[1726936297021,0.248248,147.72,147.68,6.7713]
[1726936302313,0.248248,147.72,147.7,6.7704]
[1726936302934,0.248248,147.72,147.71,25.04880966]
[1726936303241,0.248248,147.72,147.71,59.83493159]
[1726936303429,0.248248,147.72,147.71,47.471884]
[1726936305957,0.248248,147.72,147.71,77.17791401]
[1726936306121,0.248248,147.72,147.71,75.82443159]
[1726936307421,0.248248,147.72,147.71,63.461384]
[1726936310330,0.248248,147.72,147.71,23.695]
[1726936311641,0.248248,147.72,147.71,47.471884]
[1726936311947,0.248248,147.72,147.71,48.82551474]
[1726936312452,0.248248,147.72,147.71,47.471884]
[1726936313455,0.248248,147.72,147.71,59.83493159]
[1726936313638,0.248248,147.72,147.71,81.18833666]
[1726936314330,0.248248,147.72,147.71,81.43931666]
[1726936314526,0.248248,147.72,147.71,80.08591159]
[1726936315152,0.248248,147.72,147.71,81.43914751]
[1726936317046,4.8e-05,147.72,147.71,81.43914751]
[1726936317220,4.8e-05,147.72,147.71,102.38291159]
[1726936318453,0.248248,147.76,147.75,81.557264]
[1726936318754,0.248248,147.76,147.75,131.26262396]
[1726936319448,0.4191895,147.82,147.81,47.455884]
[1726936319948,0.4191895,147.82,147.81,48.80851122]
[1726936320646,0.4191895,147.82,147.81,47.455884]
[1726936320851,0.4191895,147.82,147.78,16.9168]
[1726936321049,0.4191895,147.82,147.79,30.543084]
[1726936321238,0.4191895,147.82,147.79,23.776884]
[1726936321549,7.1840895,147.82,147.78,16.9168]
[1726936321749,0.4191895,147.82,147.77,6.7672]
[1726936322144,7.1842895,147.82,147.77,6.7672]
[1726936322545,0.4191895,147.82,147.78,8.11982049]
[1726936322730,0.4191895,147.82,147.78,6.7667]
[1726936323550,0.4191895,147.82,147.77,16.9171]
[1726936323551,6.7654,147.81,147.77,16.9171]
[1726936323765,15.4638,147.8,147.75,6.768]
[1726936323944,22.2297,147.8,147.75,6.768]
[1726936325159,6.7664,147.79,147.75,23.776884]
[1726936325550,6.7664,147.79,147.74,23.6899]
[1726936325954,22.2297,147.8,147.75,31.89815009]
[1726936326257,22.2297,147.8,147.75,30.544784]
[1726936326460,6.7664,147.79,147.75,30.544784]
[1726936328567,6.7664,147.79,147.74,23.6899]
[1726936330650,6.7664,147.79,147.71,15.9895]
[1726936330651,0.25098,147.79,147.71,16.9244]
[1726936330871,0.12549,147.79,147.71,16.9244]
[1726936331071,6.7671,147.78,147.73,6.769]
[1726936332064,6.7671,147.78,147.74,23.776884]
[1726936335164,15.4638,147.8,147.75,8.12147767]
[1726936335862,22.23,147.8,147.75,8.12147767]
[1726936336166,6.7663,147.79,147.75,6.768]
[1726936336371,6.7663,147.79,147.74,30.545384]
[1726936337370,6.7663,147.79,147.75,6.7681]
[1726936339872,6.7663,147.79,147.74,30.545484]
[1726936340077,6.7669,147.78,147.74,30.545484]
[1726936341985,15.4638,147.8,147.74,30.545484]
[1726936341986,6.7664,147.79,147.74,30.545484]
[1726936344184,0.25098,147.79,147.73,16.922]
[1726936344386,6.7677,147.76,147.73,16.922]
[1726936346364,7.1885102,147.79,147.67,34.8821704]
[1726936346365,6.7707,147.7,147.67,16.0796]
[1726936346572,0.25098,147.75,147.66,6.7722]
[1726936346764,0.25098,147.75,147.67,6.7718]
[1726936346985,0.25098,147.75,147.66,16.9297]
[1726936347761,6.7692,147.73,147.68,6.7709]
[1726936347961,0.25098,147.75,147.69,6.7708]
[1726936348176,15.2942,147.76,147.7,1.35386601]
[1726936348369,22.0622,147.76,147.72,23.776884]
[1726936348682,15.2942,147.76,147.73,1.3536374]
[1726936348862,15.2942,147.76,147.72,30.545984]
[1726936350663,22.0619,147.76,147.72,30.545984]
[1726936354380,6.2878,147.78,147.73,8.12254035]
[1726936354575,6.2878,147.78,147.74,6.7685]
[1726936354885,22.0601,147.8,147.75,8.12152423]
[1726936355093,22.0601,147.8,147.75,6.7681]
[1726936355298,22.0601,147.8,147.76,6.7676]
[1726936355592,15.2942,147.8,147.77,6.7671]
[1726936355764,13.76875483,147.82,147.77,6.7671]
[1726936356093,13.4719895,147.82,147.78,1.35327421]
[1726936356293,6.7069895,147.82,147.78,1.35327421]
[1726936356479,0.4191895,147.82,147.78,1.35327421]
[1726936356988,0.4191895,147.82,147.79,6.766]
[1726936357293,0.4191895,147.82,147.79,6.7662]
[1726936357984,0.4191895,147.82,147.8,6.7658]
[1726936358788,0.4191895,147.82,147.81,1.35291081]
[1726936358992,0.4191895,147.82,147.81,8.11831081]
[1726936359174,0.4191895,147.82,147.81,30.542284]
[1726936359488,0.4191895,147.82,147.81,31.89502719]
[1726936359987,0.4191895,147.82,147.81,30.542284]
[1726936360192,0.4191895,147.82,147.81,31.89486468]
[1726936361600,0.4191895,147.82,147.81,30.542284]
[1726936362298,0.4191895,147.82,147.81,31.89475934]
[1726936363800,0.4191895,147.82,147.81,32.14573934]
[1726936363985,0.4191895,147.82,147.81,30.793264]
[1726936366206,0.4191895,147.82,147.81,30.542284]
[1726936369801,0.4191895,147.82,147.81,6.7654]
[1726936371195,0.4191895,147.82,147.81,30.542284]
[1726936371499,0.4191895,147.82,147.77,16.9178]
[1726936371691,0.4191895,147.82,147.79,6.7661]
[1726936372201,0.4191895,147.82,147.78,6.7667]
[1726936372909,0.4191895,147.82,147.77,16.9178]
[1726936372910,0.4191895,147.82,147.79,6.7662]
[1726936373108,0.4191895,147.82,147.8,31.8956668]
[1726936373407,0.4191895,147.82,147.8,30.542684]
[1726936373902,0.4191895,147.82,147.81,6.7654]
[1726936374983,0.4191895,147.82,147.81,8.11824029]
[1726936377112,0.4191895,147.82,147.8,30.542684]
[1726936377311,0.4191895,147.82,147.76,16.0071]
[1726936377312,0.4191895,147.82,147.76,32.9261]
[1726936377498,0.4191895,147.82,147.8,6.7658]
[1726936379208,0.4191895,147.82,147.78,40.693284]
[1726936379594,0.4191895,147.82,147.78,16.9164]
[1726936380209,0.4191895,147.82,147.79,1.35307838]
[1726936381085,0.4191895,147.82,147.79,8.11927838]
[1726936381287,0.4191895,147.82,147.79,1.35307838]
[1726936381586,0.4191895,147.82,147.8,30.542584]
[1726936381790,0.4191895,147.82,147.81,1.35289704]
[1726936381989,0.4191895,147.82,147.8,30.542584]
[1726936385517,0.4191895,147.82,147.78,16.9164]
[1726936385703,0.4191895,147.82,147.79,23.776884]
[1726936386097,0.4191895,147.82,147.79,30.543084]
[1726936386492,6.7662,147.8,147.75,16.9199]
[1726936386815,6.7664,147.79,147.75,16.9199]
[1726936386998,0.25098,147.81,147.75,16.9199]
[1726936386999,6.766,147.8,147.75,23.6879]
[1726936387508,6.766,147.8,147.76,1.3533238]
[1726936388103,0.4191895,147.82,147.78,6.7666]
[1726936388308,0.4191895,147.82,147.78,6.7667]
[1726936388600,7.1841895,147.82,147.77,47.461484]
[1726936390922,6.7655,147.81,147.77,47.461484]
[1726936391701,0.4191895,147.82,147.77,40.694384]
[1726936392023,0.4191895,147.82,147.8,6.7657]
[1726936394632,0.4191895,147.82,147.81,8.11829581]
[1726936394808,0.4191895,147.82,147.81,31.89517981]
[1726936395917,0.4191895,147.82,147.8,6.7657]
[1726936396137,0.4191895,147.82,147.8,30.542584]
[1726936396925,0.4191895,147.82,147.8,23.776884]
[1726936397112,0.4191895,147.82,147.8,30.542684]
[1726936399618,0.4191895,147.82,147.81,31.89518055]
[1726936400633,0.4191895,147.82,147.81,30.542284]
[1726936403329,0.4191895,147.82,147.81,42.86531876]
[1726936403823,0.4191895,147.82,147.81,30.542284]
[1726936405408,0.4191895,147.82,147.79,23.6812]
[1726936406037,0.4191895,147.82,147.79,16.9151]
[1726936406203,7.1840895,147.82,147.78,6.7667]
[1726936406402,7.1840895,147.82,147.77,6.7672]
[1726936406716,7.1840895,147.82,147.76,16.9187]
[1726936406717,6.7655,147.81,147.76,16.9187]
[1726936406911,6.7655,147.81,147.76,23.686]
[1726936407808,6.7655,147.81,147.77,6.7672]
[1726936408429,6.7655,147.81,147.76,16.9187]
[1726936408430,7.1841895,147.82,147.78,8.11994427]
[1726936408631,7.1841895,147.82,147.78,6.7667]
[1726936410114,6.7654,147.81,147.76,16.9187]
[1726936410315,0.4191895,147.82,147.76,23.6863]
[1726936410528,6.7654,147.81,147.76,23.6863]
[1726936410710,6.7654,147.81,147.77,1.35324425]
[1726936410911,6.766,147.8,147.76,16.9187]
[1726936411122,0.25098,147.81,147.73,23.691]
[1726936411123,6.7664,147.79,147.73,23.691]
[1726936411324,6.7659,147.8,147.73,16.9224]
[1726936411756,6.7655,147.81,147.76,6.7677]
[1726936412219,6.7659,147.8,147.76,6.7677]
[1726936413326,0.25098,147.81,147.77,8.12044588]
[1726936413327,6.7654,147.81,147.77,8.12044588]
[1726936413635,0.4191895,147.82,147.77,8.12044588]
[1726936413636,7.1841895,147.82,147.77,8.12044588]
[1726936414338,7.1841895,147.82,147.77,6.7671]
[1726936414935,7.1841895,147.82,147.78,1.35323584]
[1726936416230,7.1841895,147.82,147.78,1.3531747]
[1726936417421,0.4191895,147.82,147.78,1.3531747]
[1726936418331,0.4191895,147.82,147.79,6.7663]
[1726936418729,7.1842895,147.82,147.78,6.7667]
[1726936420040,7.1842895,147.82,147.77,23.6846]
[1726936422823,0.12549,147.81,147.74,23.6892]
[1726936423033,6.7665,147.79,147.74,23.6892]
[1726936423415,6.766,147.8,147.75,6.7679]
[1726936423841,6.766,147.8,147.75,8.12131113]
[1726936424030,6.766,147.8,147.76,6.7676]
[1726936428345,7.01648,147.81,147.74,16.921]
[1726936428550,6.89099,147.81,147.76,6.7675]
[1726936430137,6.89099,147.81,147.77,6.7672]
[1726936432668,6.89099,147.81,147.76,23.6864]
[1726936434542,6.89099,147.81,147.77,6.7672]
[1726936434847,0.4191895,147.82,147.79,6.7662]
[1726936435050,0.4191895,147.82,147.8,23.6797]
[1726936435351,0.4191895,147.82,147.81,8.11839383]
[1726936437261,0.4191895,147.82,147.81,30.542284]
[1726936440353,0.4191895,147.82,147.8,23.6797]
[1726936441039,0.4191895,147.82,147.79,23.776884]
[1726936441235,0.4191895,147.82,147.79,6.7661]
[1726936445950,7.1844895,147.82,147.77,16.9177]
[1726936446150,0.4191895,147.82,147.77,23.6848]
[1726936446350,6.89099,147.81,147.77,16.9177]
[1726936446563,6.7663,147.79,147.75,6.768]
[1726936446740,0.12549,147.81,147.75,6.768]
[1726936446741,6.7659,147.8,147.75,6.768]
[1726936446941,0.12549,147.81,147.76,6.7674]
[1726936446942,6.89099,147.81,147.76,6.7674]
[1726936448651,13.4769895,147.82,147.77,6.7668]
[1726936449944,6.7655,147.81,147.76,23.6865]
[1726936453368,6.766,147.8,147.76,23.6865]
[1726936459060,6.7676,147.77,147.73,16.9221]
[1726936459261,6.7674,147.77,147.73,16.9221]
[1726936459476,6.7674,147.77,147.73,23.691]
[1726936460271,6.7674,147.77,147.73,16.9221]
[1726936460456,6.7674,147.77,147.72,6.7694]
[1726936460457,6.7677,147.76,147.72,6.7694]
[1726936460783,6.7688,147.74,147.7,23.6956]
[1726936460977,6.2986,147.77,147.71,23.776884]
[1726936461156,6.7678,147.76,147.71,30.546784]
[1726936461360,6.2986,147.77,147.7,16.9256]
[1726936461361,6.7682,147.75,147.7,23.696]
[1726936461873,6.7688,147.74,147.7,16.9256]
[1726936462076,6.7688,147.74,147.7,23.6959]
[1726936462077,0.12549,147.74,147.7,23.6959]
[1726936462367,0.12549,147.74,147.71,6.77]
[1726936462577,6.7683,147.75,147.71,6.77]
[1726936463172,7.01878,147.76,147.71,6.77]
[1726936464579,0.25098,147.76,147.7,16.9256]
[1726936464752,6.7689,147.74,147.7,16.9256]
[1726936465075,6.7689,147.74,147.69,6.7708]
[1726936465076,6.7692,147.73,147.69,6.7708]
[1726936465759,6.7687,147.74,147.69,6.7708]
[1726936465959,0.25098,147.73,147.69,6.7708]
[1726936466770,6.7687,147.74,147.7,8.1242523]
[1726936466957,6.7687,147.74,147.69,6.7708]
[1726936467462,6.7687,147.74,147.7,6.7704]
[1726936469864,0.25098,147.73,147.69,6.7708]
[1726936470062,7.02018,147.73,147.69,6.7708]
[1726936472965,0.25098,147.73,147.69,6.7708]
[1726936477389,7.02038,147.73,147.68,6.7713]
[1726936477762,6.7686,147.74,147.7,6.7703]
[1726936479970,6.7692,147.73,147.69,23.6974]
[1726936480260,0.12549,147.72,147.69,23.6974]
[1726936487794,6.66659,147.72,147.69,16.9266]
[1726936499000,6.5411,147.72,147.69,23.697]
[1726936499192,7.04787668,147.74,147.7,6.7701]
[1726936500098,6.89369,147.75,147.7,6.7701]
[1726936500403,6.7686,147.74,147.7,6.7701]
[1726936500806,6.89469,147.73,147.69,16.9266]
[1726936508087,0.12549,147.75,147.69,18.28065918]
[1726936508300,0.12549,147.75,147.71,6.7696]
[1726936508591,0.12549,147.75,147.71,8.12343731]
[1726936508895,29.49232901,147.77,147.71,18.27833731]
[1726936509207,6.7669,147.78,147.73,6.7687]
[1726936509380,6.7669,147.78,147.73,8.12233544]
[1726936509587,14.51644069,147.8,147.76,6.7676]
[1726936509898,13.33822611,147.8,147.76,6.7676]
[1726936510405,6.7658,147.81,147.77,8.12053986]
[1726936510709,7.1841895,147.82,147.77,8.12053986]
[1726936511593,7.1841895,147.82,147.77,6.7672]
[1726936512105,0.12549,147.81,147.77,6.7672]
[1726936513421,0.12549,147.79,147.75,16.9198]
[1726936513591,6.7664,147.79,147.75,16.9198]
[1726936514108,6.89139,147.8,147.76,1.35347304]
[1726936514311,6.89139,147.8,147.76,8.12107304]
[1726936514491,0.12549,147.8,147.76,8.12107304]
[1726936515397,6.89099,147.81,147.76,8.12107304]
[1726936515606,6.89099,147.81,147.76,6.7676]
[1726936516398,0.12549,147.79,147.75,23.6879]
[1726936517312,6.766,147.8,147.76,8.12098875]
[1726936517611,0.4191895,147.82,147.76,8.12098875]
[1726936517612,7.01648,147.81,147.76,8.12098875]
[1726936517984,7.01648,147.81,147.77,6.7672]
[1726936518184,6.89099,147.81,147.77,6.7672]
[1726936518603,6.7655,147.81,147.77,6.7672]
[1726936518807,7.1841895,147.82,147.77,6.7672]
[1726936519117,6.7655,147.81,147.77,6.7672]
[1726936521691,6.7655,147.81,147.75,16.9198]
[1726936521692,6.7664,147.79,147.75,16.9198]
[1726936522386,6.7664,147.79,147.75,23.6879]
[1726936531489,6.7673,147.77,147.72,16.9231]
[1726936531793,6.7673,147.77,147.72,23.6922]
[1726936533326,6.7678,147.76,147.72,23.6922]
[1726936533501,6.7678,147.76,147.72,16.9231]
[1726936533915,6.7678,147.76,147.72,23.6925]
[1726936534418,6.7672,147.77,147.73,6.7688]
[1726936535122,6.7672,147.77,147.73,8.12240927]
[1726936538434,6.7687,147.74,147.7,6.7701]
[1726936538916,6.7687,147.74,147.69,23.6973]
[1726936539226,6.89499,147.72,147.68,6.771]
[1726936539411,6.89499,147.72,147.67,15.5581]
[1726936539412,6.7701,147.71,147.67,15.5581]
[1726936539608,6.7701,147.71,147.66,16.9302]
[1726936540515,0.12549,147.69,147.66,16.9302]
[1726936542027,6.89639,147.69,147.65,7.020948]
[1726936542522,6.89639,147.69,147.65,0.248248]
[1726936542711,6.7714,147.68,147.65,0.248248]
[1726936543326,0.12549,147.68,147.65,0.248248]
[1726936544015,0.12549,147.69,147.65,7.020948]
[1726936545523,6.89699,147.68,147.65,0.248248]
[1726936552425,0.12549,147.67,147.65,0.248248]
[1726936553108,6.89739,147.67,147.65,0.248248]
[1726936555636,20.36481377,147.68,147.65,0.248248]
[1726936555935,6.7714,147.68,147.65,0.248248]
[1726936559723,0.25098,147.7,147.65,7.020848]
[1726936559935,0.12549,147.68,147.65,7.020848]
[1726936560239,7.01540394,147.71,147.68,6.7713]
[1726936560443,7.01540394,147.71,147.66,40.706884]
[1726936560615,6.7696,147.72,147.66,40.706884]
[1726936561016,6.7696,147.72,147.67,6.7718]
[1726936564326,6.7701,147.71,147.67,6.7718]
[1726936564527,6.7705,147.7,147.66,23.7022]
[1726936566643,0.12549,147.69,147.66,16.93]
[1726936570045,0.12549,147.69,147.66,23.7022]
[1726936572349,6.89549,147.71,147.67,8.12614255]
[1726936572730,13.78475479,147.73,147.69,6.7708]
[1726936573041,7.01525479,147.73,147.69,6.7708]
[1726936573248,18.09710749,147.77,147.7,8.12424893]
[1726936573428,1.17830749,147.77,147.7,18.27954893]
[1726936573629,7.02076318,147.77,147.71,25.13066567]
[1726936573830,29.88722197,147.83,147.76,6.7677]
[1726936573831,6.7655,147.81,147.76,6.7677]
[1726936574139,6.766,147.8,147.75,6.7681]
[1726936574527,6.7655,147.81,147.76,6.7676]
[1726936574918,6.7659,147.8,147.76,6.7676]
[1726936575437,7.1845895,147.82,147.77,8.12061463]
[1726936575630,0.4191895,147.82,147.78,6.7667]
[1726936576225,7.1842895,147.82,147.77,6.7671]
[1726936577047,0.12549,147.8,147.76,39.6075]
[1726936586957,6.7655,147.81,147.72,23.6919]
[1726936586958,6.7673,147.77,147.72,23.6919]
[1726936587155,6.7669,147.78,147.72,16.9228]
[1726936587540,6.7669,147.78,147.73,6.769]
[1726936587966,6.7669,147.78,147.74,6.7685]
[1726936588843,6.7682,147.75,147.71,15.1606]
[1726936589052,6.7682,147.75,147.69,16.9268]
[1726936589764,6.7682,147.75,147.7,6.7701]
[1726936591249,6.7687,147.74,147.69,23.6976]
[1726936591462,6.7687,147.74,147.7,6.7704]
[1726936591863,20.0,147.78,147.72,6.7694]
[1726936592055,0.12549,147.77,147.72,6.7694]
[1726936592236,6.89269,147.77,147.72,6.7694]
[1726936592442,6.7667,147.79,147.73,8.12263064]
[1726936592756,6.7667,147.79,147.74,16.9215]
[1726936593373,6.7668,147.78,147.74,16.9215]
[1726936593951,6.7672,147.77,147.71,40.701484]
[1726936594281,6.7678,147.76,147.71,6.77]
[1726936595084,6.7671,147.78,147.72,6.7694]
[1726936595269,21.42871696,147.79,147.67,32.0901]
[1726936595484,6.7681,147.76,147.7,6.7704]
[1726936595662,0.25098,147.75,147.7,6.7704]
[1726936596080,6.7687,147.74,147.69,23.6969]
[1726936597874,0.25098,147.75,147.69,16.9264]
[1726936598082,7.01203582,147.76,147.72,6.7691]
[1726936598265,0.12549,147.76,147.72,6.7691]
[1726936599072,6.89319,147.76,147.71,23.694]
[1726936600877,6.89379,147.75,147.71,16.9241]
[1726936601091,6.7683,147.75,147.71,16.9241]
[1726936601566,6.7678,147.76,147.71,23.694]
[1726936601769,6.7678,147.76,147.72,1.35367872]
[1726936602167,6.7678,147.76,147.71,23.694]
[1726936602984,0.12549,147.77,147.68,16.928]
[1726936603188,0.25098,147.74,147.65,0.248248]
[1726936603496,6.7701,147.71,147.66,6.7719]
[1726936604161,6.7696,147.72,147.67,6.7717]
[1726936604367,6.7696,147.72,147.68,1.35408264]
[1726936604783,6.7696,147.72,147.67,6.7717]
[1726936606867,20.25098,147.74,147.65,17.179848]
[1726936607564,6.7709,147.69,147.65,17.179848]
[1726936608177,6.7717,147.68,147.65,0.248248]
[1726936608381,6.7718,147.67,147.65,0.248248]
[1726936608688,6.7723,147.66,147.65,0.248248]
[1726936608992,6.7719,147.67,147.65,0.248248]
[1726936609883,6.89699,147.68,147.65,0.248248]
[1726936611793,0.12549,147.66,147.65,0.248248]